[Event "Titled Tuesday Blitz December 27 Early 2022"]
[White "De Souza, Cristiano Gomes"]
[Black "Demin, Vladimir"]
[WhiteFideId "2151758"]
[BlackFideId "4167457"]
[WhiteElo "2018"]
[BlackElo "2430"]
[Result "0-1"]
[Round "01"]
[TimeControl "180+2"]
[Date "2022.12.27"]
[WhiteClock "0:01:18"]
[BlackClock "0:00:39"]

1. d4 {[%clk 0:02:59]}  Nf6 {[%clk 0:02:59]} 2. c4 {[%clk 0:02:59]}  e6 {[%clk 0:02:59]} 3. Nf3 {[%clk 0:02:59]}  d5 {[%clk 0:02:59]} 4. Nc3 {[%clk 0:02:59]}  c6 {[%clk 0:02:57]} 5. Bg5 {[%clk 0:02:59]}  h6 {[%clk 0:02:56]} 6. Bxf6 {[%clk 0:02:58]}  Qxf6 {[%clk 0:02:57]} 7. e3 {[%clk 0:02:56]}  g6 {[%clk 0:02:57]} 8. Ne5 {[%clk 0:02:54]}  Bg7 {[%clk 0:02:54]} 9. Be2 {[%clk 0:02:53]}  O-O {[%clk 0:02:53]} 10. O-O {[%clk 0:02:53]}  Nd7 {[%clk 0:02:49]} 11. f4 {[%clk 0:02:53]}  Qe7 {[%clk 0:02:44]} 12. Rc1 {[%clk 0:02:50]}  Rd8 {[%clk 0:02:33]} 13. c5 {[%clk 0:02:45]}  Qe8 {[%clk 0:02:27]} 14. Qc2 {[%clk 0:02:42]}  Nxe5 {[%clk 0:02:22]} 15. fxe5 {[%clk 0:02:42]}  b6 {[%clk 0:02:22]} 16. b4 {[%clk 0:02:41]}  Qe7 {[%clk 0:01:59]} 17. g3 {[%clk 0:02:35]}  Bb7 {[%clk 0:01:50]} 18. Rf4 {[%clk 0:02:33]}  a5 {[%clk 0:01:45]} 19. a3 {[%clk 0:02:33]}  axb4 {[%clk 0:01:41]} 20. axb4 {[%clk 0:02:34]}  bxc5 {[%clk 0:01:42]} 21. bxc5 {[%clk 0:02:34]}  Ba6 {[%clk 0:01:42]} 22. Rcf1 {[%clk 0:02:30]}  Rf8 {[%clk 0:01:39]} 23. Bxa6 {[%clk 0:02:17]}  Rxa6 {[%clk 0:01:38]} 24. e4 {[%clk 0:02:18]}  Ra3 {[%clk 0:01:28]} 25. exd5 {[%clk 0:02:17]}  exd5 {[%clk 0:01:26]} 26. R4f3 {[%clk 0:02:04]}  Qd7 {[%clk 0:01:20]} 27. Kg2 {[%clk 0:01:53]}  Ra7 {[%clk 0:01:14]} 28. Ne2 {[%clk 0:01:50]}  Qb7 {[%clk 0:01:11]} 29. Nf4 {[%clk 0:01:50]}  Rfa8 {[%clk 0:01:08]} 30. R1f2 {[%clk 0:01:48]}  Qb4 {[%clk 0:01:05]} 31. Nxg6 {[%clk 0:01:46]}  fxg6 {[%clk 0:01:02]} 32. Qxg6 {[%clk 0:01:42]}  Qxd4 {[%clk 0:01:01]} 33. e6 {[%clk 0:01:41]}  Qe4 {[%clk 0:00:57]} 34. Qh5 {[%clk 0:01:35]}  Re7 {[%clk 0:00:53]} 35. Kh3 {[%clk 0:01:32]}  Qxe6+ {[%clk 0:00:52]} 36. g4 {[%clk 0:01:32]}  Rf8 {[%clk 0:00:42]} 37. Rxf8+ {[%clk 0:01:31]}  Bxf8 {[%clk 0:00:43]} 38. Rf5 {[%clk 0:01:24]}  Bg7 {[%clk 0:00:40]} 39. Qh4 {[%clk 0:01:20]}  Qe3+ {[%clk 0:00:37]} 40. Qg3 {[%clk 0:01:18]}  Qxg3+ {[%clk 0:00:37]} 41. Kxg3 {[%clk 0:01:18]}  Re4 {[%clk 0:00:37]} 42. Rf3 {[%clk 0:01:17]}  Rc4 {[%clk 0:00:37]} 43. h4 {[%clk 0:01:16]}  Rxc5 {[%clk 0:00:37]} 44. g5 {[%clk 0:01:16]}  hxg5 {[%clk 0:00:37]} 45. hxg5 {[%clk 0:01:17]}  Rc3 {[%clk 0:00:38]} 46. Rxc3 {[%clk 0:01:16]}  Bxc3 {[%clk 0:00:39]} 47. Kf3 {[%clk 0:01:17]}  Kg7 {[%clk 0:00:39]} 48. Ke3 {[%clk 0:01:18]}  Kg6 {[%clk 0:00:39]} 0-1


[Site "https://www.chess.com"]

[Event "Titled Tuesday Blitz December 27 Early 2022"]
[White "Delorme, Alban"]
[Black "Rodriguez Fontecha, Marcos"]
[WhiteFideId "623636"]
[BlackFideId "2256576"]
[WhiteElo "2298"]
[BlackElo "2309"]
[Result "1-0"]
[Round "01"]
[TimeControl "180+2"]
[Date "2022.12.27"]
[WhiteClock "0:00:05"]
[BlackClock "0:00:01"]

1. e4 {[%clk 0:03:00]}  e6 {[%clk 0:02:48]} 2. d4 {[%clk 0:03:00]}  d5 {[%clk 0:02:47]} 3. Nc3 {[%clk 0:03:01]}  h6 {[%clk 0:02:35]} 4. Nf3 {[%clk 0:02:57]}  Nf6 {[%clk 0:02:34]} 5. exd5 {[%clk 0:02:50]}  exd5 {[%clk 0:02:28]} 6. Bd3 {[%clk 0:02:47]}  Bd6 {[%clk 0:02:23]} 7. O-O {[%clk 0:02:45]}  O-O {[%clk 0:02:23]} 8. Ne2 {[%clk 0:02:43]}  Bg4 {[%clk 0:02:22]} 9. Ng3 {[%clk 0:02:42]}  Re8 {[%clk 0:02:13]} 10. h3 {[%clk 0:02:41]}  Bxg3 {[%clk 0:02:13]} 11. fxg3 {[%clk 0:02:39]}  Bh5 {[%clk 0:02:13]} 12. g4 {[%clk 0:02:38]}  Bg6 {[%clk 0:02:13]} 13. Bxg6 {[%clk 0:02:35]}  fxg6 {[%clk 0:02:14]} 14. Ne5 {[%clk 0:02:35]}  g5 {[%clk 0:02:10]} 15. c3 {[%clk 0:02:02]}  Nc6 {[%clk 0:02:09]} 16. Nxc6 {[%clk 0:01:57]}  bxc6 {[%clk 0:02:10]} 17. Qf3 {[%clk 0:01:56]}  Re4 {[%clk 0:01:54]} 18. Bd2 {[%clk 0:01:55]}  Qd6 {[%clk 0:01:52]} 19. Rae1 {[%clk 0:01:53]}  Rae8 {[%clk 0:01:52]} 20. Rxe4 {[%clk 0:01:52]}  Rxe4 {[%clk 0:01:50]} 21. Re1 {[%clk 0:01:48]}  c5 {[%clk 0:01:51]} 22. Rxe4 {[%clk 0:01:45]}  dxe4 {[%clk 0:01:48]} 23. Qe3 {[%clk 0:01:13]}  Qe6 {[%clk 0:01:47]} 24. dxc5 {[%clk 0:01:01]}  Nd5 {[%clk 0:01:47]} 25. Qd4 {[%clk 0:00:58]}  e3 {[%clk 0:01:47]} 26. Be1 {[%clk 0:00:58]}  Nf4 {[%clk 0:01:29]} 27. Kh2 {[%clk 0:00:58]}  c6 {[%clk 0:01:23]} 28. c4 {[%clk 0:00:44]}  Ng6 {[%clk 0:01:10]} 29. Bc3 {[%clk 0:00:39]}  Qe7 {[%clk 0:01:06]} 30. Qd6 {[%clk 0:00:31]}  Qf7 {[%clk 0:00:40]} 31. b4 {[%clk 0:00:17]}  e2 {[%clk 0:00:37]} 32. b5 {[%clk 0:00:15]}  cxb5 {[%clk 0:00:21]} 33. c6 {[%clk 0:00:15]}  Ne7 {[%clk 0:00:19]} 34. c7 {[%clk 0:00:14]}  bxc4 {[%clk 0:00:14]} 35. Qxe7 {[%clk 0:00:13]}  Qxe7 {[%clk 0:00:10]} 36. c8=Q+ {[%clk 0:00:14]}  Kh7 {[%clk 0:00:11]} 37. Qf5+ {[%clk 0:00:14]}  Kg8 {[%clk 0:00:11]} 38. Qd5+ {[%clk 0:00:14]}  Kh7 {[%clk 0:00:08]} 39. Be1 {[%clk 0:00:11]}  Qc7+ {[%clk 0:00:06]} 40. Kg1 {[%clk 0:00:11]}  Qf4 {[%clk 0:00:05]} 41. Qd2 {[%clk 0:00:09]}  Qe4 {[%clk 0:00:04]} 42. Kf2 {[%clk 0:00:09]}  Qb1 {[%clk 0:00:02]} 43. Qxe2 {[%clk 0:00:09]}  Qc1 {[%clk 0:00:02]} 44. Qe4+ {[%clk 0:00:09]}  Kh8 {[%clk 0:00:01]} 45. Qe8+ {[%clk 0:00:09]}  Kh7 {[%clk 0:00:01]} 46. Qe4+ {[%clk 0:00:09]}  Kh8 {[%clk 0:00:01]} 47. Qd4 {[%clk 0:00:08]}  Qb1 {[%clk 0:00:01]} 48. Qxc4 {[%clk 0:00:07]}  Qb6+ {[%clk 0:00:01]} 49. Kf1 {[%clk 0:00:05]}  Qf6+ {[%clk 0:00:02]} 50. Kg1 {[%clk 0:00:06]}  Qb6+ {[%clk 0:00:02]} 51. Bf2 {[%clk 0:00:06]}  Qb7 {[%clk 0:00:02]} 52. Kh2 {[%clk 0:00:07]}  Qb8+ {[%clk 0:00:02]} 53. Bg3 {[%clk 0:00:06]}  Qb7 {[%clk 0:00:02]} 54. Qe6 {[%clk 0:00:06]}  Qc7 {[%clk 0:00:01]} 55. Bxc7 {[%clk 0:00:05]} 1-0


[Site "https://www.chess.com"]

[Event "Titled Tuesday Blitz December 27 Early 2022"]
[White "Derjabin, Ilja"]
[Black "Bortnyk, Olexandr"]
[WhiteFideId "14104768"]
[BlackFideId "14120828"]
[WhiteElo "2333"]
[BlackElo "2605"]
[Result "1/2-1/2"]
[Round "01"]
[TimeControl "180+2"]
[Date "2022.12.27"]
[WhiteClock "0:00:07"]
[BlackClock "0:00:10"]

1. d4 {[%clk 0:02:58]}  d6 {[%clk 0:03:00]} 2. c4 {[%clk 0:02:58]}  e5 {[%clk 0:02:59]} 3. d5 {[%clk 0:02:54]}  a5 {[%clk 0:02:55]} 4. Nc3 {[%clk 0:02:54]}  Na6 {[%clk 0:02:53]} 5. e4 {[%clk 0:02:54]}  f5 {[%clk 0:02:51]} 6. exf5 {[%clk 0:02:53]}  Bxf5 {[%clk 0:02:52]} 7. Bd3 {[%clk 0:02:52]}  Qd7 {[%clk 0:02:43]} 8. Nge2 {[%clk 0:02:43]}  Bxd3 {[%clk 0:02:38]} 9. Qxd3 {[%clk 0:02:43]}  Nb4 {[%clk 0:02:39]} 10. Qd1 {[%clk 0:02:35]}  Qg4 {[%clk 0:02:37]} 11. a3 {[%clk 0:02:08]}  Na6 {[%clk 0:02:33]} 12. Qa4+ {[%clk 0:02:04]}  Qd7 {[%clk 0:02:33]} 13. Qxa5 {[%clk 0:02:02]}  Nf6 {[%clk 0:02:25]} 14. O-O {[%clk 0:01:49]}  Be7 {[%clk 0:02:25]} 15. Qa4 {[%clk 0:01:40]}  c6 {[%clk 0:02:18]} 16. Bg5 {[%clk 0:01:27]}  O-O {[%clk 0:02:17]} 17. Bxf6 {[%clk 0:01:26]}  Rxf6 {[%clk 0:02:02]} 18. dxc6 {[%clk 0:01:23]}  bxc6 {[%clk 0:02:03]} 19. Nd5 {[%clk 0:01:19]}  Rg6 {[%clk 0:01:59]} 20. Qxc6 {[%clk 0:01:04]}  Ra7 {[%clk 0:01:50]} 21. Qxd7 {[%clk 0:01:00]}  Rxd7 {[%clk 0:01:51]} 22. b4 {[%clk 0:00:59]}  Bd8 {[%clk 0:01:50]} 23. Nec3 {[%clk 0:00:58]}  Rg4 {[%clk 0:01:50]} 24. Rac1 {[%clk 0:00:53]}  Rxc4 {[%clk 0:01:48]} 25. Nb5 {[%clk 0:00:53]}  Re4 {[%clk 0:01:36]} 26. Rc6 {[%clk 0:00:47]}  Nb8 {[%clk 0:01:36]} 27. Rc8 {[%clk 0:00:47]}  Na6 {[%clk 0:01:37]} 28. Rfc1 {[%clk 0:00:43]}  Kf7 {[%clk 0:01:34]} 29. f3 {[%clk 0:00:40]}  Re2 {[%clk 0:01:33]} 30. R1c6 {[%clk 0:00:39]}  Rd2 {[%clk 0:01:21]} 31. Nxd6+ {[%clk 0:00:35]}  Kf8 {[%clk 0:01:08]} 32. Rxa6 {[%clk 0:00:31]}  Rxd5 {[%clk 0:01:08]} 33. Ne4 {[%clk 0:00:31]}  Kf7 {[%clk 0:01:00]} 34. Kf2 {[%clk 0:00:27]}  h6 {[%clk 0:00:58]} 35. a4 {[%clk 0:00:26]}  Rd4 {[%clk 0:00:47]} 36. b5 {[%clk 0:00:26]}  Rb4 {[%clk 0:00:47]} 37. Rd6 {[%clk 0:00:24]}  Rxd6 {[%clk 0:00:42]} 38. Nxd6+ {[%clk 0:00:24]}  Ke7 {[%clk 0:00:43]} 39. Ne4 {[%clk 0:00:22]}  Rxa4 {[%clk 0:00:40]} 40. Rb8 {[%clk 0:00:23]}  Ra2+ {[%clk 0:00:34]} 41. Kg3 {[%clk 0:00:23]}  Rb2 {[%clk 0:00:32]} 42. Rb7+ {[%clk 0:00:23]}  Kf8 {[%clk 0:00:28]} 43. h4 {[%clk 0:00:23]}  h5 {[%clk 0:00:27]} 44. Ng5 {[%clk 0:00:22]}  Ba5 {[%clk 0:00:14]} 45. Ne6+ {[%clk 0:00:21]}  Kg8 {[%clk 0:00:14]} 46. Rxg7+ {[%clk 0:00:19]}  Kh8 {[%clk 0:00:15]} 47. Rb7 {[%clk 0:00:16]}  Be1+ {[%clk 0:00:15]} 48. Kh3 {[%clk 0:00:16]}  Rb4 {[%clk 0:00:15]} 49. g4 {[%clk 0:00:14]}  hxg4+ {[%clk 0:00:13]} 50. fxg4 {[%clk 0:00:14]}  Rb3+ {[%clk 0:00:14]} 51. Kg2 {[%clk 0:00:14]}  Bxh4 {[%clk 0:00:15]} 52. Nc5 {[%clk 0:00:11]}  Rb4 {[%clk 0:00:12]} 53. Nd3 {[%clk 0:00:07]}  Rxg4+ {[%clk 0:00:12]} 54. Kf3 {[%clk 0:00:08]}  Rd4 {[%clk 0:00:12]} 55. Nxe5 {[%clk 0:00:08]}  Bf6 {[%clk 0:00:11]} 56. Ng6+ {[%clk 0:00:07]}  Kg8 {[%clk 0:00:11]} 57. Nf4 {[%clk 0:00:07]}  Ra4 {[%clk 0:00:07]} 58. b6 {[%clk 0:00:07]}  Be5 {[%clk 0:00:05]} 59. Nd5 {[%clk 0:00:06]}  Rd4 {[%clk 0:00:06]} 60. Ne7+ {[%clk 0:00:06]}  Kf8 {[%clk 0:00:05]} 61. Nc6 {[%clk 0:00:07]}  Rf4+ {[%clk 0:00:03]} 62. Ke3 {[%clk 0:00:07]}  Bd6 {[%clk 0:00:04]} 63. Nd4 {[%clk 0:00:06]}  Rf6 {[%clk 0:00:04]} 64. Rc7 {[%clk 0:00:04]}  Bf4+ {[%clk 0:00:02]} 65. Ke4 {[%clk 0:00:04]}  Rxb6 {[%clk 0:00:03]} 66. Kxf4 {[%clk 0:00:05]}  Ke8 {[%clk 0:00:03]} 67. Ke5 {[%clk 0:00:05]}  Rb1 {[%clk 0:00:04]} 68. Rc5 {[%clk 0:00:05]}  Re1+ {[%clk 0:00:04]} 69. Kd5 {[%clk 0:00:06]}  Rd1 {[%clk 0:00:05]} 70. Ra5 {[%clk 0:00:06]}  Ke7 {[%clk 0:00:05]} 71. Ra6 {[%clk 0:00:06]}  Rd2 {[%clk 0:00:04]} 72. Re6+ {[%clk 0:00:06]}  Kf7 {[%clk 0:00:04]} 73. Rh6 {[%clk 0:00:06]}  Rd1 {[%clk 0:00:05]} 74. Rc6 {[%clk 0:00:07]}  Re1 {[%clk 0:00:04]} 75. Nf3 {[%clk 0:00:06]}  Rd1+ {[%clk 0:00:05]} 76. Ke5 {[%clk 0:00:06]}  Ke7 {[%clk 0:00:05]} 77. Rc7+ {[%clk 0:00:07]}  Rd7 {[%clk 0:00:05]} 78. Rc6 {[%clk 0:00:06]}  Rd1 {[%clk 0:00:05]} 79. Rh6 {[%clk 0:00:06]}  Kd7 {[%clk 0:00:06]} 80. Rh7+ {[%clk 0:00:06]}  Kc6 {[%clk 0:00:06]} 81. Nd4+ {[%clk 0:00:07]}  Kb6 {[%clk 0:00:06]} 82. Kd5 {[%clk 0:00:07]}  Rg1 {[%clk 0:00:06]} 83. Rh6+ {[%clk 0:00:07]}  Kb7 {[%clk 0:00:06]} 84. Nb5 {[%clk 0:00:05]}  Rg5+ {[%clk 0:00:05]} 85. Kc4 {[%clk 0:00:06]}  Rg4+ {[%clk 0:00:06]} 86. Kc5 {[%clk 0:00:06]}  Rg5+ {[%clk 0:00:07]} 87. Kb4 {[%clk 0:00:07]}  Rg4+ {[%clk 0:00:07]} 88. Ka5 {[%clk 0:00:07]}  Rg1 {[%clk 0:00:08]} 89. Rb6+ {[%clk 0:00:07]}  Kc8 {[%clk 0:00:08]} 90. Rd6 {[%clk 0:00:08]}  Ra1+ {[%clk 0:00:05]} 91. Kb6 {[%clk 0:00:08]}  Rb1 {[%clk 0:00:06]} 92. Rh6 {[%clk 0:00:06]}  Kd7 {[%clk 0:00:07]} 93. Rh7+ {[%clk 0:00:05]}  Ke6 {[%clk 0:00:07]} 94. Rh3 {[%clk 0:00:06]}  Ke5 {[%clk 0:00:07]} 95. Re3+ {[%clk 0:00:05]}  Kf4 {[%clk 0:00:07]} 96. Re8 {[%clk 0:00:06]}  Rc1 {[%clk 0:00:06]} 97. Nd6 {[%clk 0:00:05]}  Kg5 {[%clk 0:00:05]} 98. Ne4+ {[%clk 0:00:05]}  Kf5 {[%clk 0:00:05]} 99. Nc5 {[%clk 0:00:06]}  Rb1+ {[%clk 0:00:05]} 100. Kc6 {[%clk 0:00:06]}  Rd1 {[%clk 0:00:06]} 101. Rf8+ {[%clk 0:00:06]}  Ke5 {[%clk 0:00:06]} 102. Nd7+ {[%clk 0:00:05]}  Ke6 {[%clk 0:00:05]} 103. Re8+ {[%clk 0:00:05]}  Kf7 {[%clk 0:00:06]} 104. Re2 {[%clk 0:00:06]}  Rc1+ {[%clk 0:00:05]} 105. Kd6 {[%clk 0:00:06]}  Rd1+ {[%clk 0:00:06]} 106. Ke5 {[%clk 0:00:06]}  Rxd7 {[%clk 0:00:06]} 107. Rf2+ {[%clk 0:00:06]}  Ke8 {[%clk 0:00:06]} 108. Rh2 {[%clk 0:00:06]}  Rd1 {[%clk 0:00:06]} 109. Ke6 {[%clk 0:00:05]}  Re1+ {[%clk 0:00:06]} 110. Kf6 {[%clk 0:00:05]}  Kd7 {[%clk 0:00:06]} 111. Rd2+ {[%clk 0:00:05]}  Kc6 {[%clk 0:00:07]} 112. Rc2+ {[%clk 0:00:05]}  Kd6 {[%clk 0:00:08]} 113. Rd2+ {[%clk 0:00:06]}  Kc6 {[%clk 0:00:08]} 114. Rc2+ {[%clk 0:00:06]}  Kd6 {[%clk 0:00:09]} 115. Rd2+ {[%clk 0:00:07]}  Kc6 {[%clk 0:00:10]} 1/2-1/2


[Site "https://www.chess.com"]

[Event "Titled Tuesday Blitz December 27 Early 2022"]
[White "Dimitrov, Atanas"]
[Black "Levitan, Caleb Levi"]
[WhiteFideId "2901315"]
[BlackFideId "14332620"]
[WhiteElo "2269"]
[BlackElo "2129"]
[Result "1-0"]
[Round "01"]
[TimeControl "180+2"]
[Date "2022.12.27"]
[WhiteClock "0:00:22"]
[BlackClock "0:00:02"]

1. Nf3 {[%clk 0:03:00]}  Nf6 {[%clk 0:02:57]} 2. c4 {[%clk 0:03:01]}  e6 {[%clk 0:02:53]} 3. g3 {[%clk 0:03:01]}  d5 {[%clk 0:02:53]} 4. cxd5 {[%clk 0:03:01]}  exd5 {[%clk 0:02:52]} 5. Bg2 {[%clk 0:03:01]}  Bd6 {[%clk 0:02:46]} 6. d4 {[%clk 0:02:59]}  c6 {[%clk 0:02:47]} 7. Nc3 {[%clk 0:02:59]}  O-O {[%clk 0:02:46]} 8. O-O {[%clk 0:02:59]}  Bf5 {[%clk 0:02:46]} 9. Bg5 {[%clk 0:02:55]}  h6 {[%clk 0:02:42]} 10. Bd2 {[%clk 0:02:52]}  Nbd7 {[%clk 0:02:42]} 11. Re1 {[%clk 0:02:46]}  Re8 {[%clk 0:02:42]} 12. Qb3 {[%clk 0:02:45]}  Qb6 {[%clk 0:02:41]} 13. Na4 {[%clk 0:02:37]}  Qxb3 {[%clk 0:02:33]} 14. axb3 {[%clk 0:02:38]}  Ne4 {[%clk 0:02:25]} 15. Bc3 {[%clk 0:02:11]}  Nb6 {[%clk 0:02:03]} 16. e3 {[%clk 0:02:02]}  Nxa4 {[%clk 0:01:53]} 17. bxa4 {[%clk 0:02:02]}  a5 {[%clk 0:01:39]} 18. Nd2 {[%clk 0:01:56]}  Nf6 {[%clk 0:01:28]} 19. Nb3 {[%clk 0:01:50]}  b6 {[%clk 0:01:28]} 20. Rec1 {[%clk 0:01:49]}  Rec8 {[%clk 0:01:27]} 21. Nd2 {[%clk 0:01:44]}  Ra7 {[%clk 0:01:15]} 22. f3 {[%clk 0:01:39]}  Re7 {[%clk 0:01:07]} 23. Kf2 {[%clk 0:01:34]}  c5 {[%clk 0:01:03]} 24. Re1 {[%clk 0:01:29]}  c4 {[%clk 0:00:53]} 25. e4 {[%clk 0:01:13]}  dxe4 {[%clk 0:00:50]} 26. fxe4 {[%clk 0:01:11]}  Ng4+ {[%clk 0:00:47]} 27. Kg1 {[%clk 0:01:11]}  Bd7 {[%clk 0:00:21]} 28. e5 {[%clk 0:01:04]}  Bb8 {[%clk 0:00:14]} 29. h3 {[%clk 0:01:05]}  Nf6 {[%clk 0:00:11]} 30. exf6 {[%clk 0:01:05]}  Rxe1+ {[%clk 0:00:09]} 31. Rxe1 {[%clk 0:01:06]}  Bxg3 {[%clk 0:00:09]} 32. Re2 {[%clk 0:01:02]}  gxf6 {[%clk 0:00:08]} 33. Ne4 {[%clk 0:01:02]}  Bh4 {[%clk 0:00:07]} 34. d5 {[%clk 0:01:02]}  Kg7 {[%clk 0:00:07]} 35. Nd6 {[%clk 0:00:51]}  Rd8 {[%clk 0:00:05]} 36. Nxc4 {[%clk 0:00:48]}  b5 {[%clk 0:00:04]} 37. axb5 {[%clk 0:00:45]}  Bxb5 {[%clk 0:00:03]} 38. b3 {[%clk 0:00:45]}  a4 {[%clk 0:00:03]} 39. Re4 {[%clk 0:00:34]}  Bg5 {[%clk 0:00:02]} 40. bxa4 {[%clk 0:00:32]}  Bxa4 {[%clk 0:00:03]} 41. Ne3 {[%clk 0:00:28]}  Bxe3+ {[%clk 0:00:02]} 42. Rxe3 {[%clk 0:00:29]}  Bb3 {[%clk 0:00:03]} 43. Rg3+ {[%clk 0:00:25]}  Kf8 {[%clk 0:00:03]} 44. Bxf6 {[%clk 0:00:25]}  Rd6 {[%clk 0:00:03]} 45. Be5 {[%clk 0:00:23]}  Rd7 {[%clk 0:00:02]} 46. Rxb3 {[%clk 0:00:22]} 1-0


[Site "https://www.chess.com"]

[Event "Titled Tuesday Blitz December 27 Early 2022"]
[White "Erzhanov, Arman"]
[Black "Mohammadian, Mohammad"]
[WhiteFideId "4138821"]
[BlackFideId "12566055"]
[WhiteElo "2228"]
[BlackElo "1398"]
[Result "1-0"]
[Round "01"]
[TimeControl "180+2"]
[Date "2022.12.27"]
[WhiteClock "0:01:51"]
[BlackClock "0:01:11"]

1. e4 {[%clk 0:02:59]}  e5 {[%clk 0:02:53]} 2. Nf3 {[%clk 0:02:59]}  Nc6 {[%clk 0:02:49]} 3. Bc4 {[%clk 0:02:59]}  Bc5 {[%clk 0:02:48]} 4. c3 {[%clk 0:02:59]}  Nf6 {[%clk 0:02:47]} 5. d4 {[%clk 0:03:00]}  exd4 {[%clk 0:02:47]} 6. cxd4 {[%clk 0:03:01]}  Bb4+ {[%clk 0:02:47]} 7. Nc3 {[%clk 0:03:01]}  Nxe4 {[%clk 0:02:46]} 8. O-O {[%clk 0:03:02]}  Bxc3 {[%clk 0:02:42]} 9. d5 {[%clk 0:03:02]}  Na5 {[%clk 0:02:36]} 10. bxc3 {[%clk 0:03:01]}  Nxc4 {[%clk 0:02:33]} 11. Qd4 {[%clk 0:03:02]}  O-O {[%clk 0:02:30]} 12. Qxe4 {[%clk 0:03:02]}  Nd6 {[%clk 0:02:27]} 13. Qd4 {[%clk 0:02:57]}  Ne8 {[%clk 0:02:23]} 14. Bg5 {[%clk 0:02:56]}  Nf6 {[%clk 0:02:21]} 15. Nd2 {[%clk 0:02:53]}  d6 {[%clk 0:02:21]} 16. Ne4 {[%clk 0:02:52]}  Re8 {[%clk 0:02:04]} 17. Bxf6 {[%clk 0:02:43]}  Rxe4 {[%clk 0:01:59]} 18. Bxd8 {[%clk 0:02:42]}  Rxd4 {[%clk 0:01:57]} 19. cxd4 {[%clk 0:02:43]}  Bf5 {[%clk 0:01:56]} 20. Bxc7 {[%clk 0:02:43]}  Rc8 {[%clk 0:01:51]} 21. Bxd6 {[%clk 0:02:42]}  Rc2 {[%clk 0:01:50]} 22. Rfc1 {[%clk 0:02:34]}  Rxc1+ {[%clk 0:01:44]} 23. Rxc1 {[%clk 0:02:32]}  h6 {[%clk 0:01:40]} 24. Rc7 {[%clk 0:02:26]}  Be4 {[%clk 0:01:36]} 25. Rxb7 {[%clk 0:02:17]}  Bxd5 {[%clk 0:01:36]} 26. Rxa7 {[%clk 0:02:02]}  Kh7 {[%clk 0:01:35]} 27. a4 {[%clk 0:02:00]}  Kg6 {[%clk 0:01:35]} 28. a5 {[%clk 0:01:56]}  Kf5 {[%clk 0:01:35]} 29. Bc5 {[%clk 0:01:54]}  Ke4 {[%clk 0:01:35]} 30. Re7+ {[%clk 0:01:53]}  Kd3 {[%clk 0:01:34]} 31. a6 {[%clk 0:01:53]}  Kc4 {[%clk 0:01:32]} 32. a7 {[%clk 0:01:53]}  Kb5 {[%clk 0:01:32]} 33. Re8 {[%clk 0:01:54]}  Kc4 {[%clk 0:01:31]} 34. a8=Q {[%clk 0:01:54]}  Bxa8 {[%clk 0:01:31]} 35. Rxa8 {[%clk 0:01:54]}  f5 {[%clk 0:01:31]} 36. Rf8 {[%clk 0:01:49]}  g6 {[%clk 0:01:31]} 37. Rf6 {[%clk 0:01:48]}  f4 {[%clk 0:01:25]} 38. Rxg6 {[%clk 0:01:48]}  h5 {[%clk 0:01:20]} 39. Rh6 {[%clk 0:01:48]}  f3 {[%clk 0:01:12]} 40. gxf3 {[%clk 0:01:48]}  h4 {[%clk 0:01:12]} 41. Rxh4 {[%clk 0:01:48]}  Kd3 {[%clk 0:01:12]} 42. Re4 {[%clk 0:01:49]}  Kc4 {[%clk 0:01:12]} 43. h4 {[%clk 0:01:49]}  Kb5 {[%clk 0:01:12]} 44. h5 {[%clk 0:01:50]}  Kc4 {[%clk 0:01:11]} 45. h6 {[%clk 0:01:51]} 1-0


[Site "https://www.chess.com"]

[Event "Titled Tuesday Blitz December 27 Early 2022"]
[White "Ezat, Mohamed"]
[Black "Roque Sola, Gisela"]
[WhiteFideId "10600906"]
[BlackFideId "5120241"]
[WhiteElo "2402"]
[BlackElo "2061"]
[Result "1-0"]
[Round "01"]
[TimeControl "180+2"]
[Date "2022.12.27"]
[WhiteClock "0:00:06"]
[BlackClock "0:00:04"]

1. d4 {[%clk 0:02:58]}  Nf6 {[%clk 0:02:55]} 2. c4 {[%clk 0:02:56]}  e6 {[%clk 0:02:54]} 3. Nf3 {[%clk 0:02:54]}  d5 {[%clk 0:02:52]} 4. Nc3 {[%clk 0:02:52]}  Be7 {[%clk 0:02:51]} 5. cxd5 {[%clk 0:02:48]}  exd5 {[%clk 0:02:50]} 6. Bg5 {[%clk 0:02:45]}  O-O {[%clk 0:02:48]} 7. e3 {[%clk 0:02:42]}  Bf5 {[%clk 0:02:45]} 8. Bxf6 {[%clk 0:02:36]}  Bxf6 {[%clk 0:02:44]} 9. Qb3 {[%clk 0:02:36]}  Nc6 {[%clk 0:02:17]} 10. a3 {[%clk 0:02:13]}  Re8 {[%clk 0:02:12]} 11. Bb5 {[%clk 0:02:08]}  Bxd4 {[%clk 0:01:57]} 12. Bxc6 {[%clk 0:01:50]}  Bxc3+ {[%clk 0:01:56]} 13. Qxc3 {[%clk 0:01:49]}  bxc6 {[%clk 0:01:57]} 14. O-O {[%clk 0:01:44]}  Rb8 {[%clk 0:01:55]} 15. b4 {[%clk 0:01:43]}  Be4 {[%clk 0:01:51]} 16. Nd4 {[%clk 0:01:39]}  Qf6 {[%clk 0:01:25]} 17. Rac1 {[%clk 0:01:22]}  Rb6 {[%clk 0:01:17]} 18. Nxc6 {[%clk 0:01:10]}  Qg6 {[%clk 0:00:58]} 19. f3 {[%clk 0:01:08]}  Bd3 {[%clk 0:00:55]} 20. Ne5 {[%clk 0:00:58]}  Rxe5 {[%clk 0:00:32]} 21. Qxe5 {[%clk 0:00:57]}  h5 {[%clk 0:00:32]} 22. Rf2 {[%clk 0:00:43]}  Bc4 {[%clk 0:00:29]} 23. e4 {[%clk 0:00:25]}  c6 {[%clk 0:00:27]} 24. h3 {[%clk 0:00:15]}  Kh7 {[%clk 0:00:22]} 25. g4 {[%clk 0:00:13]}  h4 {[%clk 0:00:21]} 26. f4 {[%clk 0:00:09]}  c5 {[%clk 0:00:17]} 27. f5 {[%clk 0:00:08]}  Qg5 {[%clk 0:00:16]} 28. Qf4 {[%clk 0:00:08]}  Qxf4 {[%clk 0:00:15]} 29. Rxf4 {[%clk 0:00:08]}  cxb4 {[%clk 0:00:15]} 30. axb4 {[%clk 0:00:08]}  Bb3 {[%clk 0:00:12]} 31. exd5 {[%clk 0:00:08]}  Bxd5 {[%clk 0:00:12]} 32. Rd4 {[%clk 0:00:08]}  Bb3 {[%clk 0:00:10]} 33. g5 {[%clk 0:00:08]}  f6 {[%clk 0:00:07]} 34. Rxh4+ {[%clk 0:00:06]}  Kg8 {[%clk 0:00:07]} 35. g6 {[%clk 0:00:07]}  Rb8 {[%clk 0:00:06]} 36. Rc7 {[%clk 0:00:07]}  Bd5 {[%clk 0:00:04]} 37. Rh7 {[%clk 0:00:06]} 1-0


[Site "https://www.chess.com"]